Cogmind - Beta 10.1 @@@ ROGUE MODE // 2020.10.07 @ 00:17:24 Player: BOTHUNTER Result: Destroyed by G-34 Mercenary with Small Laser Performance ------------- Evolutions (0) 0 Regions Visited (1) 200 Robots Destroyed (1) 5 Value Destroyed (54) 54 Prototype IDs (0) 0 Alien Tech Used (0) 0 Bonus (0) 0 TOTAL SCORE: 259 Bonus ------- None Cogmind --------- Core Integrity 0/250 Matter 256/300 Energy 100/100 System Corruption 0% Temperature Cool (6) Movement Core (100) Ox1 Location -10/Materials Parts ------- > --- POWER (1) -------- (None) > --- PROPULSION (2) --- (None) > --- UTILITY (2) ------ Propulsion Shielding > --- WEAPON (2) ------- Light Cannon > --- INVENTORY (4) ---- Light Ion Engine Small Storage Unit EM Pulse Gun Maul Peak State ------------ > --- POWER ------------ (None) > --- PROPULSION ------- (None) > --- UTILITY ---------- Propulsion Shielding > --- WEAPON ----------- Maul > --- INVENTORY -------- Light Ion Engine Small Storage Unit EM Pulse Gun [Rating: 3] Favorites ----------- Power None Propulsion None Utility Propulsion Shielding Protection Propulsion Shielding Weapon EM Pulse Gun Energy Gun EM Pulse Gun Ballistic Cannon Light Cannon Impact Weapon Maul Build | -11 -10 ------- Run | Scr Mat Slots Evolved . | . . Power . | . . Propulsion . | . . Utility . | . . Weapon . | . . Parts Attached 5 | 2 3 Power . | . . Engine . | . . Core . | . . Reactor . | . . Propulsion . | . . Treads . | . . Leg . | . . Wheel . | . . Hover . | . . Flight . | . . Utility 1 | . 1 Device . | . . Storage . | . . Processor . | . . Hackware . | . . Protection 1 | . 1 Artifact . | . . Weapon 4 | 2 2 Energy Gun 2 | 2 . Energy Cannon . | . . Ballistic Gun . | . . Ballistic Cannon 1 | . 1 Launcher . | . . Special Weapon . | . . Impact Weapon 1 | . 1 Slashing Weapon . | . . Piercing Weapon . | . . Special Melee Weapon . | . . Unidentified Prototypes . | . . Parts Lost 1 | . 1 Power . | . . Propulsion . | . . Utility . | . . Weapon 1 | . 1 Highest Loss Streak 1 | . 1 Average Slot Usage (%) 21 | . 21 Protection 11 | . 11 Energy Gun 8 | . 8 Ballistic Cannon 2 | . 2 Naked Turns . | . . Heaviest Build 4 | 2 4 Greatest Support 3 | 3 3 Greatest Overweight (x) 1 | . 1 Average Overweight (x) . | . . Largest Inventory Capacity 4 | 4 4 Average Capacity 4 | 4 4 Most Carried 4 | 3 4 Average Carried 3 | 1 3 Final Capacity 4 | 4 4 Final Carried 4 | 3 4 Class Distribution -------------------- 100% | Mutant Dominant Class ---------------- Mutant | -10/Materials Resources | -11 -10 ----------- Run | Scr Mat Matter Collected 220 | 220 . Remotely . | . . Salvage Created 45 | . 45 Parts 3 | . 3 Haulers Intercepted . | . . Recyclers Shooed . | . . Parts Field Recycled . | . . Retrieved Matter . | . . Parts Self-Destructed . | . . Prevented . | . . Kills | -11 -10 ------- Run | Scr Mat Combat Hostiles Destroyed 1 | . 1 AOE 1 | . 1 Classes Destroyed 1 | . 1 Grunt 1 | . 1 Best Kill Streak 1 | . 1 Combat Bots Only 1 | . 1 Max Kills in Single Turn 1 | . 1 Gunslinging . | . . Exploded 1 | . 1 Melee . | . . Uniques/NPCs Destroyed . | . . Combat | -11 -10 -------- Run | Scr Mat Damage Taken 367 | . 367 Core 254 | . 254 Absorbed by Shields . | . . Core Remaining (%) 100 | 100 . Volleys Fired 13 | . 13 Largest 1 | . 1 Hottest 40 | . 40 Shots Fired 13 | . 13 Gun 5 | . 5 Cannon 8 | . 8 Launcher . | . . Special . | . . Kinetic 8 | . 8 Thermal . | . . Explosive . | . . Electromagnetic 5 | . 5 Robot Hit Streak 2 | . 2 Robot Miss Streak 3 | . 3 Penetration Max . | . . Secondary Targets . | . . Shots Hit Robots 3 | . 3 Core Hits 3 | . 3 Critical Hits . | . . Critical Kills . | . . Critical Parts Destroyed . | . . Melee Attacks 1 | . 1 Impact 1 | . 1 Slashing . | . . Piercing . | . . Sneak Attacks . | . . Combat Hostiles . | . . Follow-up Attacks . | . . Damage Inflicted 109 | . 109 Guns 15 | . 15 Cannons 16 | . 16 Explosions 70 | . 70 Melee . | . . Ramming 8 | . 8 Kinetic 16 | . 16 Thermal 70 | . 70 Explosive . | . . Electromagnetic 15 | . 15 Impact . | . . Slashing . | . . Piercing . | . . Highest Corruption . | . . Average Corruption . | . . Corruption Purged . | . . Overload Shots . | . . Overflow Damage 9 | . 9 Projectiles . | . . Explosions 9 | . 9 Melee . | . . Knockbacks . | . . Impact . | . . Kinetic . | . . Secondary . | . . Self-Inflicted Damage 39 | . 39 Shots 1 | . 1 Rammed 3 | . 3 Targets Rammed 3 | . 3 Kicked . | . . Crushed . | . . Highest Temperature 25 | . 25 Average Temperature 14 | . 14 Received Heat Transfer 180 | . 180 Siege Activations . | . . Robots Corrupted . | . . Combat Hostiles . | . . Parts Fried . | . . Impact Corruptions . | . . Robots Melted . | . . Combat Hostiles . | . . Parts Melted . | . . Heat Transferred 100 | . 100 Parts Sabotaged . | . . Parts Stolen . | . . Parts Stripped . | . . Power Chain Reactions 1 | . 1 Missiles Intercepted . | . . Alert | -11 -10 ------- Run | Scr Mat Peak Influence 171 | . 171 Initial . | . . Average 74 | . 81 Maximum Alert Level . | . . Low Security (%) 100 | 100 100 Level 1 . | . . Level 2 . | . . Level 3 . | . . Level 4 . | . . Level 5 . | . . High Security . | . . Max Security . | . . Squads Dispatched 2 | . 2 Investigation 2 | . 2 Extermination . | . . Reinforcement . | . . Assault . | . . Garrison . | . . Intercept . | . . Construction Impeded . | . . Haulers Reinforced . | . . Stealth | -11 -10 --------- Run | Scr Mat Distress Signals . | . . Communications Jammed . | . . Distress Signals . | . . Times Spotted 11 | . 11 Peak Tracking Total 7 | . 7 Tactical Retreats 2 | . 2 Traps | -11 -10 ------- Run | Scr Mat Traps Triggered 1 | . 1 Indirectly . | . . Trap Hack Attempts . | . . Triggered . | . . Disarmed . | . . Reprogrammed . | . . Reused . | . . Traps Extracted . | . . Installed . | . . Triggered . | . . Machines | -11 -10 ---------- Run | Scr Mat Machines Disabled 2 | . 2 Max in Single Turn 2 | . 2 Machines Sabotaged . | . . Garrisons Compromised . | . . Overloaded Fab Kills . | . . Fab Network Shutdowns . | . . Hacking | -11 -10 --------- Run | Scr Mat Machines Accessed 6 | . 6 Terminals 5 | . 5 Fabricators . | . . Repair Stations . | . . Recycling Units 1 | . 1 Scanalyzers . | . . Garrison Access . | . . Total Hacks 17 | . 17 Successful 10 | . 10 Failed 7 | . 7 Catastrophic 2 | . 2 Database Lockouts . | . . Manual 10 | . 10 Terminals 15 | . 15 Fabricators . | . . Repair Stations . | . . Recycling Units 2 | . 2 Scanalyzers . | . . Garrison Access . | . . Terminal Hacks 6 | . 6 Record 1 | . 1 Robot Analysis 2 | . 2 Branch Access Points 1 | . 1 Terminal Index 1 | . 1 Recycling Unit Index 1 | . 1 Fabricator Hacks . | . . Repair Station Hacks . | . . Recycling Unit Hacks 1 | . 1 Report Inventory 1 | . 1 Scanalyzer . | . . Garrison Access Hacks . | . . Unauthorized Hacks 3 | . 3 Terminals 2 | . 2 Botnet 2 | . 2 Fabricators . | . . Repair Stations . | . . Recycling Units 1 | . 1 Tunnel 1 | . 1 Scanalyzers . | . . Garrison Access . | . . Data Cores Recovered . | . . Used . | . . Hacking Detections 5 | . 5 Full Trace Events 2 | . 2 Feedback Events . | . . Feedback Blocked . | . . Robot Schematics Acquired . | . . Robots Built . | . . Matter . | . . Time . | . . Total Robot Build Rating . | . . Part Schematics Acquired . | . . Parts Built . | . . Matter . | . . Time . | . . Total Part Build Rating . | . . Parts Repaired . | . . Time . | . . Parts Recycled . | . . Recycled Matter . | . . Retrieved Matter . | . . Retrieved Components . | . . Parts Scanalyzed . | . . Part Schematics Acquired . | . . Parts Damaged . | . . Bothacking | -11 -10 ------------ Run | Scr Mat Used RIF Installer . | . . Robots Hacked . | . . Non-combat . | . . Combat . | . . Robot Hacks Applied . | . . Relay Couplers Released . | . . Robots Rewired . | . . Allies Hacked . | . . Hacks Repelled . | . . Allies | -11 -10 -------- Run | Scr Mat Total Allies . | . . Largest Group . | . . Highest-Rated Group . | . . Highest-Rated Ally . | . . Total Orders . | . . Ally Attacks . | . . Total Damage . | . . Kills . | . . Allies Corrupted . | . . Allies Melted . | . . Intel | -11 -10 ------- Run | Scr Mat Robot Analysis Total 2 | . 2 Derelict Logs Recovered . | . . Drone Launches . | . . Drone Recoveries . | . . Exploration | -11 -10 ------------- Run | Scr Mat Turns Passed 292 | 26 266 Spaces Moved 439 | 41 398 Core 439 | 41 398 Treads . | . . Legs . | . . Wheels . | . . Hover . | . . Flight . | . . Fastest Speed 50 | 50 50 Average Speed 51 | 50 51 Slowest Speed 100 | 50 100 Overloaded Moves . | . . Propulsion Burnouts . | . . Robots Hopped . | . . Cave-ins Triggered . | . . Exploration Rate (%) 30 | 3 58 Regions Visited 1 Branch Regions . Pre-discovered Areas 1 | . 1 Known Exits Taken . | . . Unknown Exits Taken 1 | 1 . Scrap Searched . | . . Spaces Dug . | . . Terrain Destroyed 3 | . 3 Melee . | . . Projectile . | . . AOE 3 | . 3 Terrain Rammed . | . . Walls Destroyed . | . . Machines Disabled . | . . Actions | -11 -10 --------- Run | Scr Mat Total 489 | 45 444 Wait 24 | . 24 Move 438 | 40 398 Hop . | . . Pick Up 3 | 2 1 Fast Attach 4 | 2 2 Attach 1 | . 1 Detach 2 | 1 1 Swap . | . . Drop . | . . Fire 13 | . 13 Melee 1 | . 1 Ram 3 | . 3 Kick . | . . Crush . | . . Escape Stasis . | . . Rewire . | . . Trap . | . . Miscellaneous . | . . Route ------- -11/Scrapyard -10/Materials (discovered 2 exits: [*Mat] / *Min) History --------- Turn | Location | Event 7 | -11/Scrapyard | Discovered new exit (range 16) 27 | -11/Scrapyard | Entered Materials 93 | -10/Materials | Identified exit to Mines 110 | -10/Materials | Discovered new exit (range 3) 200 | -10/Materials | Core integrity fell below 50% 205 | -10/Materials | Core integrity fell below 20% 293 | -10/Materials | Destroyed by G-34 Mercenary with Small Laser Last Messages --------------- 00136_ ALERT: Suspicious activity at Recycling Unit M002. Dispatching Investigation squad. 00146_ K-01 Serf collects debris. 00153_ Acquired Maul. 00163_ Triggered Alarm Trap. 00163_ An alarm sounds. 00163_ ALERT: Alarm triggered, dispatching investigation squad. 00188_ Chain reaction triggered in Ion Engine. 00188_ Electrolysis Chamber disabled. 00188_ EM Pulse Gun destroyed. 00188_ Destroyed EM Pulse Gun. 00188_ G-34 Mercenary destroyed. 00199_ Slammed into U-05 Engineer. 00219_ K-01 Serf cleans the Machine. 00219_ K-01 Serf collects debris. 00225_ Connecting with Terminal... >>Index(Recycling Units) Found 1 recycling unit. Downloaded coordinate data. 00255_ Acquired Lgt. Cannon. Map ----- +----------------------------------------------------+ | ??????????# # !!!#??????????????????? | | ??????????# # !! #??????????????????? | | ??????????# # #??????????????????? | | ??????????# # #??????????????????? | | ??????????# # #??????????????????? | | ???######?# ###/####????????????????? | | ???# ?# #????????????????? | | ???# # #???????????###### | | ???#! # #??????###+## | | ???# """ + #### #?###### | | ???# """ # #??# #[ # > | | ???# """ # #??# # """ # | | ???######## #??# + """ # ##" | | ??????# #??# # """ # ##" !"| | | ??????# #??# # # ##""""" | | ??????# #?## ######## ####### | | ??????# ######?# ####### #?????? | | ??????# #??????# #?????? | | ??????# #??????# = #???### | | ??????# #??????# " #???# | | ?###??# #??????# ## T #???# | | ? ??# #???########### " #???# " | | # """?# #???# # #???# " | | # """?# #???# # #???# " | | # """ # #???# gg # #???# " | | # # #???#@""" """ + #???# " | | # + #???#g"""g""" # """ #???# | | # # #???# """ """ # """ #???### | | ?###### ##??# # """ ####### | | ?????# [ #??# # | | ?????# ############## | | ?????# T | | ?????# ######?# #####+######## | | ?###?## ######### ## #??? | | # """ # # """ ## ##""" #??? | | # """ + + "T" ## ##""" #??? | | # """ # # ## ##""" #### | | # ??# # | ## "" ## # | | # ????#### ## "" ##""" # | | ?????????# ## "T ##""" # | | ?????????###+##### "" ##""" + | | ???????????# #???# "" ## # | | ??????###### ##### #####+##### | | ???# | | ??????################################# | | ??????????????????????????????????????? | | ??????????????????????????????????????? | | ??????????????????????????????????????? | | ??????????????????????????????????????? | | | +----------------------------------------------------+ Best States ------------- Heat Dissipation 25 Energy Generation 5 Energy Capacity 100 Matter Stores 300 Matter Capacity 300 Sight Range 16 Terrain Scan Density 10 Propulsion Shielding 33 Evasion (%) 50 Item Schematics ----------------- None Robot Schematics ------------------ None Fabricated ------------ Nothing Alien Tech Used ----------------- None Achievements -------------- None Challenges ------------ None Game ------ Seed HeavySuperchargedSource Manual? 0 Play Time 00:09:50 Cumulative 114.6 hours Start 2020.10.07 @ 00:00:58 End 2020.10.07 @ 00:17:24 Sessions 1 Manual Loads 0 Difficulty Rogue Special Mode None Game No. 171 Rogue 147 Adventurer 22 Explorer 2 Win Type - Total 1 Types 1/0/0/0/0/0/0/0/0 Lore% 50 Gallery% 54 Achievement% 44 Wizard Run 0 Options --------- ASCII 0 Keyboard 0 Movement Numpad Keybinds 0 Fullscreen 1 Font 14/SmallcapsGlow Map View 84x54 Tactical HUD 1 Map Filters NONE Filters NONE Steam 1 RUN: 0b20db3e-0fc8-4b4b-8f5d-e67b8f88f497